bitfinex/quotes_ETHUSD_20250622
["timestamp","ask_amount","ask_price","bid_price","bid_amount"]
[1750634114572,2.094,2227.6,2227.3,0.0583]
[1750634114767,2.8925,2227.7,2227.4,10.0583]
[1750634114927,10.0,2228.6,2227.4,10.0]
[1750634115127,10.0,2228.6,2227.5,0.0583]
[1750634115128,0.7615,2228.0,2227.5,0.0583]
[1750634115340,0.7615,2228.0,2227.4,10.0]
[1750634115641,0.7615,2228.0,2227.6,10.56409462]
[1750634115882,2.094,2228.1,2227.7,0.04488463]
[1750634116177,2.094,2228.1,2227.8,0.0583]
[1750634116583,2.094,2228.1,2227.6,10.62239462]
[1750634116785,2.094,2228.1,2227.3,11.37589462]
[1750634117078,0.41916092,2228.0,2227.3,11.25185448]
[1750634117259,2.094,2228.1,2227.3,11.25185448]
[1750634117465,2.094,2228.1,2227.6,10.0]
[1750634117662,2.094,2228.1,2227.6,10.0583]
[1750634118244,0.7615,2228.2,2227.6,10.0583]
[1750634118445,9.93900491,2228.1,2227.6,10.0583]
[1750634118747,9.52,2228.1,2227.6,10.0583]
[1750634119540,9.5617,2228.1,2227.6,10.0583]
[1750634121170,9.52,2228.1,2227.6,10.0583]
[1750634121368,0.7615,2228.2,2227.9,0.0583]
[1750634121583,2.51316433,2228.1,2227.9,0.0583]
[1750634121779,2.094,2228.1,2227.9,0.0583]
[1750634122279,2.094,2228.1,2227.7,1.349609]
[1750634122584,2.094,2228.1,2227.6,10.0]
[1750634122743,0.7615,2228.2,2227.7,0.0583]
[1750634123052,0.7615,2228.2,2227.6,11.349701]
[1750634123254,2.089,2228.1,2227.6,11.349701]
[1750634123578,0.7615,2228.2,2227.7,0.0583]
[1750634123882,2.50844288,2228.1,2227.7,0.0583]
[1750634124082,2.089,2228.1,2227.7,0.0583]
[1750634124450,0.7615,2228.2,2227.7,0.0583]
[1750634124650,2.5088018,2228.1,2227.7,0.0583]
[1750634124852,2.089,2228.1,2227.7,0.0583]
[1750634125348,2.089,2228.4,2227.9,10.0583]
[1750634125551,0.41975178,2228.3,2228.0,0.0583]
[1750634125758,0.7608,2228.3,2227.9,10.0583]
[1750634125972,0.7608,2228.3,2228.0,0.0583]
[1750634126175,0.0417,2228.6,2228.2,10.0]
[1750634126176,0.7608,2228.6,2228.2,10.0]
[1750634126385,2.089,2228.6,2228.4,10.56409462]
[1750634126587,2.089,2228.6,2228.5,0.0583]
[1750634126895,2.089,2228.6,2228.5,0.5188751]
[1750634127191,2.089,2228.6,2228.5,0.0583]
[1750634128213,10.79,2229.6,2228.5,10.0583]
[1750634128491,10.79,2229.6,2228.8,10.0]
[1750634128492,0.0417,2229.4,2228.8,10.0]
[1750634128788,0.0417,2228.9,2228.0,0.0583]
[1750634128962,0.8025,2228.7,2228.0,0.0583]
[1750634129290,2.5082077,2228.6,2228.0,0.0583]
[1750634129502,0.7608,2228.7,2228.2,10.0583]
[1750634129668,2.089,2228.5,2228.2,10.0583]
[1750634131072,0.7608,2228.7,2228.2,10.0583]
[1750634131277,2.089,2228.5,2228.2,10.0583]
[1750634132983,2.089,2228.5,2228.2,10.0]
[1750634133593,2.089,2228.5,2228.2,10.0583]
[1750634133957,2.089,2228.5,2228.3,0.0583]
[1750634134692,2.089,2228.5,2227.9,10.7579]
[1750634134867,2.089,2228.5,2227.9,10.8162]
[1750634135378,2.089,2228.5,2227.9,10.7579]
[1750634135589,2.089,2228.5,2228.0,0.0583]
[1750634135887,2.089,2228.5,2227.9,10.7579]
[1750634136893,0.7608,2228.7,2228.0,1.349422]
[1750634137094,2.089,2228.6,2228.0,1.349422]
[1750634137260,2.089,2228.6,2228.1,0.0583]
[1750634137656,2.089,2228.6,2228.0,1.349422]
[1750634138293,2.089,2228.6,2228.1,0.0583]
[1750634138495,2.089,2228.6,2228.0,0.0583]
[1750634138703,0.7608,2228.7,2228.3,0.0583]
[1750634139020,2.089,2228.6,2228.3,0.0583]
[1750634139999,2.089,2228.6,2228.1,1.407649]
[1750634140189,2.089,2228.6,2228.2,0.0583]
[1750634140676,2.089,2228.6,2228.2,10.0]
[1750634140998,2.089,2228.6,2228.3,0.0583]
[1750634141298,2.089,2228.6,2228.2,10.0]
[1750634141596,2.089,2228.6,2228.2,10.0572]
[1750634141797,2.089,2228.6,2228.3,0.0572]
[1750634144099,0.7645,2228.9,2228.3,0.0572]
[1750634144305,2.089,2228.5,2228.1,1.349349]
[1750634144602,0.8167,2228.2,2227.3,1.24165448]
[1750634144811,0.8167,2228.0,2227.5,1.349767]
[1750634144970,0.8167,2227.7,2226.9,0.0572]
[1750634145166,0.8167,2227.5,2226.9,0.0572]
[1750634145379,2.089,2227.4,2226.9,10.56409462]
[1750634145579,2.089,2227.4,2227.0,0.0572]
[1750634146206,2.089,2227.4,2227.0,10.0572]
[1750634146403,2.089,2227.3,2227.2,0.0572]
[1750634146715,0.8281,2228.3,2227.2,10.56409462]
[1750634146882,2.50827594,2228.2,2227.4,0.0572]
[1750634147082,0.41927594,2228.1,2227.4,0.0572]
[1750634147281,2.089,2228.2,2227.5,10.60898439]
[1750634147478,2.089,2228.2,2227.7,0.0572]
[1750634148177,2.089,2228.2,2227.6,10.0]
[1750634148579,2.089,2228.2,2227.7,0.0572]
[1750634148810,2.089,2228.2,2227.8,0.0572]
[1750634150814,2.089,2228.2,2227.6,10.0]
[1750634151009,0.777,2228.1,2227.4,0.7826]
[1750634151215,0.0417,2228.0,2227.4,1.34981]
[1750634151543,0.0417,2228.0,2227.3,10.0]
[1750634151909,0.777,2228.1,2227.6,10.0]
[1750634152102,0.777,2228.1,2227.7,0.0572]
[1750634152103,2.089,2228.0,2227.7,0.0572]
[1750634152537,2.089,2228.0,2227.6,10.0]
[1750634152835,2.089,2228.0,2227.6,10.0572]
[1750634153207,0.777,2228.1,2227.7,0.0572]
[1750634153408,2.085,2228.0,2227.9,0.0572]
[1750634154217,11.5861,2228.4,2227.9,0.0572]
[1750634154412,11.5861,2228.4,2227.9,10.0572]
[1750634154413,2.085,2228.3,2227.9,10.0572]
[1750634154619,2.085,2228.3,2227.9,10.0]
[1750634154838,2.085,2228.3,2228.0,0.0572]
[1750634155355,2.085,2228.3,2227.9,10.0]
[1750634156141,2.085,2228.3,2227.8,0.8207]
[1750634156343,2.085,2228.3,2227.7,10.0]
[1750634156507,0.0417,2228.1,2227.7,10.0]
[1750634156713,0.0417,2228.1,2227.7,11.349585]
[1750634157111,0.0417,2228.1,2227.7,10.0]
[1750634157758,0.8318,2228.2,2227.7,10.0]
[1750634157942,0.8735,2228.2,2227.7,10.0]
[1750634158614,0.8735,2228.2,2227.5,0.0572]
[1750634159327,0.8318,2228.2,2227.5,0.0572]
[1750634160144,9.505,2228.1,2227.4,1.349768]
[1750634160358,9.505,2228.1,2227.0,15.77243169]
[1750634160359,0.7518,2227.8,2227.2,0.0572]
[1750634160559,0.7518,2227.8,2227.3,10.56409462]
[1750634160859,2.085,2227.9,2227.7,10.0572]
[1750634161154,2.085,2227.9,2227.4,0.8319]
[1750634161358,2.085,2227.9,2227.5,0.0572]
[1750634161565,2.085,2227.9,2227.7,10.0]
[1750634161727,2.085,2227.9,2227.8,0.0572]
[1750634162560,2.085,2228.0,2227.7,10.0]
[1750634162781,0.7518,2228.3,2227.8,0.0572]
[1750634162978,12.872,2228.4,2228.1,0.0572]
[1750634163183,12.872,2228.4,2228.3,10.0572]
[1750634163471,2.085,2228.4,2228.3,10.0572]
[1750634163765,2.085,2228.4,2228.0,10.0572]
[1750634163972,2.085,2228.4,2228.0,10.0]
[1750634164176,2.085,2228.4,2228.1,0.0572]
[1750634165272,2.085,2228.4,2228.3,10.0572]
[1750634165574,2.085,2228.4,2228.3,10.8239]
[1750634165780,2.085,2228.8,2228.3,10.8239]
[1750634165948,2.085,2228.8,2228.3,10.7667]
[1750634166145,2.085,2228.8,2228.4,0.0572]
[1750634166348,2.085,2228.8,2228.5,0.0572]
[1750634168039,2.085,2228.8,2228.7,0.0572]
[1750634168246,2.085,2228.8,2228.4,0.45016207]
[1750634168454,2.085,2228.8,2228.3,0.81157203]
[1750634168660,2.085,2228.8,2228.5,0.04487203]
[1750634168955,0.7543,2229.1,2228.6,10.62129462]
[1750634169138,2.085,2229.0,2228.6,10.62129462]
[1750634169342,0.7543,2229.1,2228.6,10.62129462]
[1750634169539,2.085,2229.0,2228.6,10.62129462]
[1750634169781,2.085,2229.0,2228.6,0.0572]
[1750634170154,2.085,2229.0,2228.4,10.0]
[1750634170356,10.789,2229.3,2228.9,10.56409462]
[1750634170560,12.874,2229.3,2228.7,0.0572]
[1750634170854,12.874,2229.3,2228.7,10.0572]
[1750634171472,12.874,2229.3,2229.0,10.0]
[1750634171473,2.085,2229.2,2229.0,10.0]
[1750634171688,2.085,2229.2,2229.0,10.0583]
[1750634172483,10.789,2229.3,2229.0,10.0583]
[1750634172683,0.0417,2229.8,2228.8,1.348869]
[1750634172684,2.085,2229.8,2229.3,10.0]
[1750634172983,2.085,2229.8,2229.2,10.56409462]
[1750634172984,0.7901,2229.6,2229.0,10.0]
[1750634173185,0.7901,2229.6,2229.1,0.04485727]
[1750634173351,0.7901,2229.6,2229.3,10.0]
[1750634173548,2.085,2229.5,2229.3,10.0]
[1750634174246,2.084,2229.6,2229.3,10.0583]
[1750634175087,2.084,2229.6,2229.3,10.0]
[1750634175471,0.7901,2229.9,2229.3,10.0]
[1750634175670,0.7901,2229.9,2229.3,10.0583]
[1750634175870,0.0417,2229.8,2229.0,10.8237]
[1750634176100,0.7948,2229.7,2229.0,10.8237]
[1750634176280,0.7948,2229.7,2229.3,10.0583]
[1750634176480,0.8365,2229.7,2229.0,0.882]
[1750634176712,7.416,2229.6,2229.0,0.0583]
[1750634177005,2.084,2229.5,2229.0,0.0583]
[1750634177194,2.084,2229.5,2228.9,10.0]
[1750634177600,7.0,2230.0,2229.0,1.3611]
[1750634177801,7.7581,2230.0,2229.5,10.8694]
[1750634178011,7.7581,2230.0,2229.5,10.8111]
[1750634178170,7.0,2230.0,2229.8,10.56409462]
[1750634178383,7.0,2230.0,2229.9,10.0583]
[1750634181074,7.0,2230.0,2229.9,10.51267803]
[1750634181274,7.0,2230.0,2229.9,10.45437803]
[1750634181974,7.0,2230.0,2229.9,10.51267803]
[1750634182414,7.0,2230.0,2229.9,0.45437803]
[1750634182597,7.0,2230.0,2229.6,10.0]
[1750634182778,7.0,2230.0,2229.8,0.0583]
[1750634183591,7.0,2230.0,2229.8,1.406691]
[1750634184206,7.0,2230.0,2229.8,1.348391]
[1750634184602,7.0,2230.0,2229.8,1.79657052]
[1750634184998,7.0,2230.0,2229.8,1.85487052]
[1750634185924,7.0,2230.0,2229.9,10.0583]
[1750634186111,9.08,2230.0,2229.9,10.8886]
[1750634186315,7.0,2230.0,2229.9,11.4386]
[1750634187018,7.0,2230.0,2229.9,16.2086]
[1750634189589,2.08,2230.6,2230.2,0.55]
[1750634189918,8.1678,2230.9,2230.6,0.0583]
[1750634190211,8.1678,2230.9,2230.5,10.0583]
[1750634190379,8.1678,2230.9,2230.5,10.0]
[1750634190586,8.1678,2230.9,2230.6,0.0583]
[1750634190787,7.411,2230.9,2230.6,0.0583]
[1750634191006,2.08,2230.9,2230.6,0.0583]
[1750634191190,2.08,2230.9,2230.5,10.8751]
[1750634191408,2.08,2230.9,2230.6,0.0583]
[1750634192402,2.08,2230.9,2230.7,10.56409462]
[1750634192599,2.08,2230.9,2230.8,0.0583]
[1750634193119,2.08,2230.9,2230.5,10.8168]
[1750634193321,2.08,2230.9,2230.5,10.0]
[1750634193524,2.8373,2230.9,2230.5,10.0]
[1750634193720,2.8373,2230.9,2230.6,0.10312547]
[1750634193922,2.08,2230.9,2230.6,0.0583]
[1750634194220,2.08,2230.9,2230.5,10.0]
[1750634194221,2.08,2231.0,2230.7,11.35969462]
[1750634194393,2.08,2231.1,2230.7,11.35969462]
[1750634194582,2.08,2231.1,2230.8,0.0583]
[1750634195017,2.08,2231.1,2230.7,11.35969462]
[1750634195182,2.08,2231.1,2230.8,0.04482032]
[1750634195386,2.08,2231.1,2231.0,20.56409462]
[1750634195619,2.08,2231.1,2231.0,20.62239462]
[1750634196321,13.0841313,2231.4,2231.1,0.0583]
[1750634196520,13.0841313,2231.4,2231.0,20.56409462]
[1750634196716,13.0841313,2231.4,2231.0,21.07383401]
[1750634196888,0.8498,2231.3,2231.0,10.45143939]
[1750634197289,0.8081,2231.3,2231.0,10.45143939]
[1750634197819,0.2241313,2231.4,2231.2,0.0583]
[1750634198022,0.2241313,2231.4,2231.3,0.0583]
[1750634199836,0.2241313,2231.4,2231.3,0.65310859]
[1750634200538,0.2241313,2231.4,2231.3,1.43230859]
[1750634200686,0.2241313,2231.4,2231.3,1.3875]
[1750634200885,0.2241313,2231.4,2231.3,18.7945]
[1750634202043,0.0033313,2231.4,2231.3,18.7945]
[1750634202240,2.079,2232.1,2231.8,0.0598]
[1750634202389,2.079,2232.1,2232.0,10.0]
[1750634202794,2.079,2232.1,2232.0,11.406846]
[1750634203033,0.7635,2232.4,2232.0,11.347046]
[1750634203336,2.8425,2232.4,2232.0,11.406846]
[1750634204351,2.079,2232.4,2232.0,1.406846]
[1750634204493,2.8518,2232.4,2232.0,1.347046]
[1750634205221,2.8518,2232.4,2232.0,1.39184238]
[1750634205420,2.8518,2232.4,2232.1,0.0598]
[1750634205933,2.8518,2232.4,2232.0,1.347046]
[1750634206234,2.8518,2232.4,2232.0,1.45164238]
[1750634206439,0.7728,2232.4,2232.0,1.406846]
[1750634206798,0.8145,2232.4,2232.0,1.347046]
[1750634207001,0.0417,2232.3,2232.0,1.347046]
[1750634207531,0.7728,2232.4,2232.0,1.347046]
[1750634207731,0.7728,2232.4,2232.1,0.0598]
[1750634208048,10.776,2232.6,2232.1,0.0598]
[1750634208403,0.7555,2232.5,2232.0,1.347046]
[1750634208604,0.0417,2232.4,2232.0,1.347046]
[1750634208820,0.7555,2232.5,2232.0,1.347046]
[1750634209017,0.7972,2232.5,2232.0,1.347046]
[1750634209515,0.7555,2232.5,2232.0,1.406846]
[1750634209716,0.7555,2232.5,2232.1,0.0598]
[1750634210025,7.404,2232.9,2232.1,0.0598]
[1750634210026,0.7652,2233.4,2232.1,0.8856]
[1750634210203,0.7652,2233.3,2232.6,10.56409462]
[1750634210398,8.1692,2233.3,2232.6,10.56409462]
[1750634211230,9.482,2233.2,2232.6,10.56409462]
[1750634211402,0.7652,2233.3,2232.6,10.56409462]
[1750634211403,0.7652,2233.3,2232.7,0.8562]
[1750634211605,0.7652,2233.3,2232.8,0.10458109]
[1750634211606,2.078,2233.1,2232.8,0.10458109]
[1750634211801,0.7652,2233.3,2232.9,0.0598]
[1750634212002,9.482,2233.4,2232.9,0.44691283]
[1750634212201,9.482,2233.4,2233.0,0.0598]
[1750634212402,0.7915,2233.5,2233.0,0.0598]
[1750634212626,2.078,2233.4,2233.1,0.0598]
[1750634212825,2.078,2233.4,2233.2,0.8559]
[1750634213046,0.2241313,2233.6,2233.3,0.0598]
[1750634213245,0.2241313,2233.6,2233.5,0.0598]
[1750634213849,0.2241313,2233.6,2233.2,11.36019462]
[1750634214050,0.2241313,2233.6,2233.1,0.7915]
[1750634214239,0.7915,2233.5,2233.1,0.7915]
[1750634214456,0.8332,2233.5,2233.1,0.7915]
[1750634214764,9.478,2233.4,2233.1,0.7915]
[1750634215263,9.5197,2233.4,2233.1,1.23204246]
[1750634216141,0.8156,2233.2,2233.1,0.7915]
[1750634216466,0.8156,2233.2,2233.1,0.44895395]
[1750634216467,10.2926,2233.2,2233.1,0.44895395]
[1750634216769,0.2241313,2233.6,2233.0,1.406417]
[1750634216932,2.076,2233.5,2233.2,0.0598]
[1750634217262,2.076,2233.5,2233.3,0.0598]
[1750634217628,2.076,2233.5,2233.4,10.62389462]
[1750634217962,0.2241313,2233.6,2233.5,0.0598]
[1750634218163,0.2241313,2233.6,2233.5,0.10456617]
[1750634218362,0.2241313,2233.6,2233.5,0.0598]
[1750634218672,0.2241313,2233.6,2233.5,0.6098]
[1750634219052,0.2241313,2233.6,2233.5,0.0598]
[1750634219437,0.2241313,2233.6,2233.5,0.10456498]
[1750634219640,0.2241313,2233.6,2233.5,11.394]
[1750634220243,0.2241313,2233.6,2233.5,19.56429718]
[1750634221744,0.2241313,2233.6,2233.2,0.8243]
[1750634221941,0.0417,2233.4,2233.0,1.346617]
[1750634222140,0.0417,2233.3,2232.5,0.43837028]
[1750634222442,0.0417,2233.3,2232.0,0.8243]
[1750634222443,0.7867,2232.9,2232.4,0.7867]
[1750634222656,0.7867,2232.9,2232.3,0.43935689]
[1750634222875,9.481,2232.8,2232.1,0.0598]
[1750634223174,9.481,2232.8,2232.0,0.8243]
[1750634223565,9.481,2232.8,2232.1,0.8243]
[1750634223740,9.481,2232.8,2232.2,0.04479273]
[1750634224282,0.7867,2232.9,2232.2,0.04479273]
[1750634224487,0.7867,2232.9,2232.3,0.0598]
[1750634224796,0.7867,2232.9,2232.4,8.17029718]
[1750634224956,2.075,2233.0,2232.4,8.23009718]
[1750634225149,2.075,2232.9,2232.4,8.23009718]
[1750634225486,2.075,2232.9,2232.6,0.0598]
[1750634225649,2.075,2232.9,2232.4,8.17029718]
[1750634226155,2.075,2232.9,2232.5,10.04478554]
[1750634226373,2.075,2232.9,2232.6,0.0598]
[1750634226882,0.2241313,2233.6,2232.9,0.55]
[1750634227043,0.2241313,2233.6,2233.1,10.0]
[1750634227248,0.2241313,2233.6,2233.1,10.0598]
[1750634227675,2.075,2233.5,2233.1,10.0598]
[1750634228497,2.075,2233.5,2233.1,10.0]
[1750634228985,2.075,2233.5,2233.1,10.0598]
[1750634229780,2.075,2233.5,2233.1,10.0]
[1750634229965,2.075,2233.5,2233.2,0.0598]
[1750634230276,2.075,2233.5,2233.2,1.31435303]
[1750634230479,2.075,2233.5,2233.4,0.0598]
[1750634230695,2.075,2233.5,2233.2,1.31435303]
[1750634230852,2.075,2233.5,2233.3,0.0598]
[1750634231346,2.075,2233.5,2233.2,1.31435303]
[1750634231710,2.075,2233.5,2233.3,0.0575]
[1750634232479,2.075,2233.5,2233.2,1.31435303]
[1750634232683,2.075,2233.5,2233.4,0.0575]
[1750634232981,0.2241313,2233.6,2233.5,0.6075]
[1750634233151,0.2241313,2233.6,2233.5,0.65226223]
[1750634233863,0.2241313,2233.6,2233.5,0.6075]
[1750634234213,0.2241313,2233.6,2233.4,10.0575]
[1750634234361,0.2241313,2233.6,2233.5,0.0575]
[1750634235090,0.2241313,2233.6,2233.4,10.0]
[1750634235391,0.2241313,2233.6,2233.5,0.10226621]
[1750634236178,0.2241313,2233.6,2233.5,0.0575]
[1750634236479,0.2241313,2233.6,2233.5,1.41366296]
[1750634237199,0.2241313,2233.6,2233.5,1.3689]
[1750634237999,0.2241313,2233.6,2233.5,0.8189]
[1750634239077,0.2241313,2233.6,2233.4,10.0]
[1750634239396,0.2241313,2233.6,2233.2,1.52588209]
[1750634239706,0.2241313,2233.6,2233.2,1.30377933]
[1750634240610,0.2241313,2233.6,2233.3,0.0575]
[1750634241183,0.2241313,2233.6,2233.2,1.24627933]
[1750634241389,1.0319313,2233.6,2233.2,0.44637933]
[1750634241714,1.0319313,2233.6,2233.2,0.0575]
[1750634242009,0.2241313,2233.6,2233.2,0.04477072]
[1750634242211,0.2241313,2233.6,2233.5,0.0575]
[1750634242611,0.2241313,2233.6,2233.4,0.755]
[1750634242810,0.2241313,2233.6,2233.3,8.72029718]
[1750634243038,0.2241313,2233.6,2233.3,8.22779718]
[1750634243193,0.2241313,2233.6,2233.3,8.17029718]
[1750634243394,0.2241313,2233.6,2233.4,0.0575]
[1750634244041,0.2241313,2233.6,2233.3,8.17029718]
[1750634244339,0.2241313,2233.6,2233.3,8.22779718]
[1750634244544,0.2241313,2233.6,2233.2,0.45678702]
[1750634244694,2.3231313,2233.6,2233.2,0.45678702]
[1750634244895,2.3231313,2233.6,2233.3,0.04477392]
[1750634245091,2.3231313,2233.6,2233.0,0.0575]
[1750634245324,2.3231313,2233.6,2233.0,1.346248]
[1750634245530,2.3231313,2233.6,2233.0,2.42153021]
[1750634246429,0.2241313,2233.6,2233.2,10.55]
[1750634246632,0.2241313,2233.6,2233.3,0.0575]
[1750634246797,0.2241313,2233.6,2233.5,11.3997]
[1750634247432,0.2241313,2233.6,2233.5,10.0575]
[1750634247602,0.2241313,2233.6,2233.2,0.0575]
[1750634247934,0.9946313,2233.6,2233.2,0.0575]
[1750634248129,3.0936313,2233.6,2232.9,10.0575]
[1750634248635,3.0936313,2233.6,2232.9,11.403748]
[1750634249130,3.0936313,2233.6,2232.9,10.0575]
[1750634249310,3.0936313,2233.6,2233.0,0.04477399]
[1750634249704,3.0936313,2233.6,2233.2,0.0575]
[1750634250124,3.0936313,2233.6,2232.8,2.138551]
[1750634250334,0.0417,2233.4,2232.2,0.8203]
[1750634250535,0.7629,2233.1,2232.6,0.0575]
[1750634250735,0.7629,2233.1,2232.6,10.04478193]
[1750634250935,2.8619,2233.4,2232.7,0.0575]
[1750634251723,2.8619,2233.4,2232.6,0.8203]
[1750634251906,2.8619,2233.4,2232.4,11.4278]
[1750634252319,0.7629,2233.3,2232.4,11.4278]
[1750634252541,0.8046,2233.3,2232.4,11.4278]
[1750634252841,0.8046,2233.3,2232.4,10.0575]
[1750634253033,0.7629,2233.3,2232.4,0.0575]
[1750634253229,0.7629,2233.1,2232.2,2.167044]
[1750634253417,0.7629,2232.9,2232.1,10.0575]
[1750634253621,2.099,2232.8,2232.2,0.04479051]
[1750634254547,2.099,2232.8,2232.0,3.17473282]
[1750634254548,2.1407,2232.8,2232.0,2.62473282]
[1750634254707,0.7581,2232.7,2232.0,2.62473282]
[1750634255104,0.7581,2232.7,2232.1,10.0]
[1750634255508,2.1,2232.6,2232.1,10.0575]
[1750634255954,2.1,2232.6,2232.2,0.0575]
[1750634256114,0.7581,2232.7,2232.2,0.0575]
[1750634256310,2.1,2232.6,2232.3,0.0575]
[1750634258056,2.1,2232.6,2232.2,0.55]
[1750634258247,7.426,2233.0,2232.4,10.0]
[1750634258248,2.8581,2233.0,2232.4,10.0]
[1750634258457,2.8581,2233.0,2232.5,0.10228233]
[1750634258618,2.8581,2233.0,2232.2,0.6075]
[1750634258947,2.8581,2233.0,2232.2,0.55]
[1750634259152,2.8581,2233.0,2232.3,0.0575]
[1750634260048,0.7581,2233.0,2232.4,10.0]
[1750634260349,2.1,2232.9,2232.5,0.0575]
[1750634260550,2.1,2232.9,2232.6,0.10228487]
[1750634260714,2.1,2232.9,2232.6,0.0575]
[1750634260909,0.7581,2233.0,2232.5,0.55]
[1750634261148,2.1,2232.9,2232.5,0.55]
[1750634261352,0.8133,2233.2,2232.8,0.0622]
[1750634261516,2.9133,2233.4,2233.0,10.0]
[1750634261710,13.0851313,2233.6,2233.2,0.0622]
[1750634261937,13.0851313,2233.6,2233.3,10.0622]
[1750634262333,13.0851313,2233.6,2233.3,10.0]
[1750634262627,13.0851313,2233.6,2233.1,0.0622]
[1750634263424,13.0851313,2233.6,2232.7,0.55]
[1750634263425,0.8232,2233.5,2232.8,0.0622]
[1750634263947,0.868,2233.4,2232.5,0.8228]
[1750634264123,0.8263,2233.0,2232.2,0.0622]
[1750634264339,2.1,2232.9,2232.2,0.0622]
[1750634264955,0.7928,2232.8,2232.2,0.0622]
[1750634265273,0.7928,2232.8,2232.0,1.80443282]
[1750634265477,0.7928,2232.8,2232.0,0.45758582]
[1750634265654,0.7928,2232.8,2231.9,0.8512]
[1750634266373,0.7928,2232.8,2232.0,0.04479401]
[1750634266867,0.7928,2232.8,2232.0,0.48665561]
[1750634267065,0.7928,2232.8,2232.0,0.04479401]
[1750634267245,0.7928,2232.8,2231.9,0.8512]
[1750634269684,0.7928,2232.8,2232.0,0.04479447]
[1750634270008,0.7928,2232.8,2232.4,10.0]
[1750634270205,2.1,2232.7,2232.4,10.0]
[1750634270789,2.1,2232.7,2232.2,0.6122]
[1750634271113,2.1,2232.7,2232.3,0.0622]
[1750634272910,0.7928,2232.8,2232.1,10.0]
[1750634272911,0.7928,2232.8,2232.2,0.55]
[1750634273206,0.7928,2232.8,2232.3,0.0622]
[1750634273207,2.904,2232.8,2232.3,0.0622]
[1750634273574,2.904,2232.8,2232.1,10.7941]
[1750634273776,2.904,2232.8,2232.2,0.0622]
[1750634274592,2.904,2232.8,2232.2,0.10699274]
[1750634275111,2.904,2232.8,2232.2,0.65699274]
[1750634275320,2.904,2232.8,2232.2,0.10698751]
[1750634275727,2.904,2232.8,2232.2,0.0622]
[1750634276485,2.904,2232.8,2232.2,0.10699091]
[1750634277624,2.904,2232.8,2232.5,10.0]
[1750634280807,2.904,2232.8,2232.2,10.0]
[1750634281005,0.8207,2232.7,2231.9,0.45692291]
[1750634281202,2.093,2232.7,2232.6,0.0622]
[1750634281403,2.093,2232.7,2232.3,10.0]
[1750634281619,2.093,2232.7,2231.7,0.46310499]
[1750634281620,0.7938,2232.6,2231.9,0.44712255]
[1750634281791,0.7938,2232.6,2231.8,10.0]
[1750634282112,0.7938,2232.6,2231.9,0.04479793]
[1750634283005,0.7938,2232.6,2231.8,10.0]
[1750634283788,0.7938,2232.6,2231.9,0.0447979]
[1750634284118,0.7938,2232.6,2231.9,0.1069979]
[1750634284697,0.7938,2232.6,2231.9,0.0622]
[1750634285517,0.7938,2232.6,2231.9,0.43945298]
[1750634285819,0.7938,2232.6,2232.1,10.0622]
[1750634286120,10.9851313,2233.6,2232.5,0.0622]
[1750634286121,2.093,2232.7,2232.5,0.0622]
[1750634286419,2.093,2232.8,2232.7,0.0622]
[1750634288827,2.093,2232.8,2232.6,10.0]
[1750634289137,2.093,2232.8,2232.6,10.0622]
[1750634289439,2.093,2232.8,2232.7,0.0622]
[1750634289794,2.093,2232.8,2232.6,10.0]
[1750634290427,2.093,2232.8,2232.6,10.0622]
[1750634290632,0.8049,2233.5,2232.8,0.8378]
[1750634290924,2.093,2233.3,2232.8,10.0622]
[1750634291111,2.093,2233.3,2232.9,0.0622]
[1750634291312,2.093,2233.2,2233.0,0.0563]
[1750634291612,2.093,2233.2,2233.0,10.55748013]
[1750634291822,2.093,2233.2,2233.1,11.402705]
[1750634293144,0.8049,2233.5,2233.1,11.346405]
[1750634293307,0.8049,2233.5,2233.2,0.0563]
[1750634293828,13.0781313,2233.6,2233.3,0.0563]
[1750634294439,13.0781313,2233.6,2233.1,11.346405]
[1750634294440,13.0781313,2233.6,2233.2,0.0563]
[1750634294645,13.0781313,2233.6,2233.2,0.04477077]
[1750634294835,2.092,2233.5,2233.2,0.04477077]
[1750634295231,0.2241313,2233.6,2233.5,0.0563]
[1750634295437,0.2241313,2233.6,2233.5,0.65105969]
[1750634296259,0.2241313,2233.6,2233.5,0.6063]
[1750634297664,0.2241313,2233.6,2233.5,0.50699247]
[1750634298878,0.2241313,2233.6,2233.5,0.45069247]
[1750634299042,0.2241313,2233.6,2233.4,10.0]
[1750634299365,0.2241313,2233.6,2233.5,0.0563]
[1750634301691,0.2241313,2233.6,2233.5,1.05155229]
[1750634301982,0.2241313,2233.6,2233.5,0.6063]
[1750634302189,0.2241313,2233.6,2233.5,1.46246392]
[1750634303086,0.2241313,2233.6,2233.5,16.1877]
[1750634304790,0.2241313,2233.6,2233.5,16.6272028]
[1750634306277,0.2241313,2233.6,2233.5,11.8572028]
[1750634306675,0.2241313,2233.6,2233.5,13.2029988]
[1750634307078,0.2241313,2233.6,2233.5,11.7852988]
[1750634307766,0.2241313,2233.6,2233.5,11.8415988]
[1750634307996,0.2241313,2233.6,2233.5,12.5485988]
[1750634308161,0.2241313,2233.6,2233.5,11.7852988]
[1750634308890,0.2241313,2233.6,2233.5,11.8415988]
[1750634309403,0.2241313,2233.6,2233.5,13.1548988]